fUSD/lending_fUSD_20250510
["ID","MTS","AMOUNT","RATE_DAILY","PERIOD"]
[360526195,1746841832675,-154.17,0.00019958,2]
[360526197,1746841832686,-419.75,0.00019958,2]
[360526198,1746841832696,-470.34222463,0.00019967,4]
[360526199,1746841832707,-400.0,0.00019967,2]
[360526202,1746841832718,-429.38867199,0.00019967,2]
[360526204,1746841832729,-400.0,0.00019967,2]
[360526206,1746841832739,-400.0,0.00019967,2]
[360526208,1746841832750,-400.0,0.00019967,2]
[360526209,1746841832761,-400.0,0.00019967,2]
[360526210,1746841832772,-400.0,0.00019967,2]
[360526211,1746841832782,-1568.808473,0.00019967,2]
[360526212,1746841832793,-467.55775534,0.00019967,2]
[360526213,1746841832803,-400.0,0.00019967,2]
[360526214,1746841832814,-435.90728837,0.00019967,2]
[360526215,1746841832826,-400.0,0.00019967,2]
[360526216,1746841832838,-400.0,0.00019967,2]
[360526217,1746841832848,-400.0,0.00019967,2]
[360526218,1746841832859,-400.0,0.00019967,2]
[360526219,1746841832870,-496.38439104,0.00019967,2]
[360526220,1746841832881,-400.0,0.00019967,2]
[360526221,1746841832892,-422.60368988,0.00019967,2]
[360526222,1746841832903,-400.0,0.00019967,2]
[360526223,1746841832913,-403.15982808,0.00019967,2]
[360526224,1746841832924,-400.0,0.00019967,2]
[360526225,1746841832936,-400.0,0.00019967,2]
[360526226,1746841832946,-400.0,0.00019967,2]
[360526227,1746841832957,-400.0,0.00019967,2]
[360526228,1746841832968,-400.0,0.00019967,2]
[360526229,1746841832979,-481.02630813,0.00019967,2]
[360526230,1746841832990,-326.13893105,0.00019967,2]
[360526231,1746841833001,-303.52448707,0.00019967,2]
[360526232,1746841833013,-400.0,0.00019967,2]
[360526233,1746841833023,-424.97,0.00019967,2]
[360526234,1746841833034,-400.0,0.00019967,2]
[360526235,1746841833045,-400.0,0.00019967,2]
[360526236,1746841833056,-400.0,0.00019967,2]
[360526237,1746841833067,-400.0,0.00019967,2]
[360526238,1746841833080,-400.0,0.00019967,2]
[360526239,1746841833093,-400.0,0.00019967,2]
[360526240,1746841833105,-400.0,0.00019967,2]
[360526241,1746841833116,-400.0,0.00019967,2]
[360526242,1746841833128,-400.0,0.00019967,2]
[360526243,1746841833139,-400.0,0.00019967,2]
[360526244,1746841833151,-400.0,0.00019967,2]
[360526245,1746841833163,-400.0,0.00019967,2]
[360526246,1746841833174,-164.8712068,0.00019967,2]
[360526247,1746841833186,-400.0,0.00019967,2]
[360526248,1746841833196,-400.0,0.00019967,2]
[360526249,1746841833207,-400.0,0.00019967,2]
[360526250,1746841833218,-400.0,0.00019967,2]
[360526251,1746841833231,-400.0,0.00019967,2]
[360526252,1746841833242,-400.0,0.00019967,2]
[360526253,1746841833254,-400.0,0.00019967,2]
[360526254,1746841833265,-500.0,0.00019967,4]
[360526255,1746841833277,-400.0,0.00019967,2]
[360526256,1746841833288,-500.0,0.00019967,2]
[360526257,1746841833299,-400.0,0.00019967,2]
[360526258,1746841833311,-400.0,0.00019967,2]
[360526259,1746841833323,-400.0,0.00019967,2]
[360526260,1746841833334,-400.0,0.00019967,2]
[360526261,1746841833346,-400.0,0.00019967,2]
[360526262,1746841833358,-400.0,0.00019967,2]
[360526263,1746841833369,-400.0,0.00019967,2]
[360526264,1746841833380,-400.0,0.00019967,2]
[360526265,1746841833392,-220.07084514,0.00019967,2]
[360526266,1746841833403,-400.0,0.00019967,2]
[360526267,1746841833414,-400.0,0.00019967,2]
[360526268,1746841833425,-523.08910799,0.00019967,2]
[360526269,1746841833435,-400.0,0.00019967,2]
[360526270,1746841833447,-400.0,0.00019967,2]
[360526271,1746841833458,-400.0,0.00019967,2]
[360526272,1746841833470,-400.0,0.00019967,2]
[360526273,1746841833483,-400.0,0.00019967,2]
[360526274,1746841833497,-400.0,0.00019967,2]
[360526275,1746841833508,-400.0,0.00019967,2]
[360526276,1746841833520,-539.84792087,0.00019967,2]
[360526277,1746841833533,-400.0,0.00019967,2]
[360526278,1746841833544,-161.85863287,0.00019967,2]
[360526279,1746841833556,-400.0,0.00019967,2]
[360526280,1746841833568,-400.0,0.00019967,2]
[360526281,1746841833581,-540.97599806,0.00019967,2]
[360526282,1746841833593,-400.0,0.00019967,2]
[360526283,1746841833604,-258.69355133,0.00019967,2]
[360526284,1746841833616,-400.0,0.00019967,2]
[360526285,1746841833627,-400.0,0.00019967,2]
[360526286,1746841833637,-522.96180013,0.00019967,2]
[360526287,1746841833649,-400.0,0.00019967,2]
[360526288,1746841833660,-400.0,0.00019967,2]
[360526289,1746841833671,-91.65388937,0.00019967,2]
[360526290,1746841833789,-308.34611063,0.00019967,2]
[360526291,1746841833799,-249.63435966,0.00019967,2]
[360526292,1746841838043,-284.95564034,0.00019967,2]
[360526293,1746841838053,-301.95563798,0.00019967,2]
[360526294,1746841838063,-459.77,0.00019967,2]
[360526295,1746841838072,-509.30375785,0.00019967,2]
[360526296,1746841838081,-400.0,0.00019967,2]
[360526297,1746841838091,-400.0,0.00019967,2]
[360526298,1746841838099,-423.38831773,0.00019967,2]
[360526315,1746841840506,-652.556,0.0001989,2]
[360526316,1746841840515,-97.78173719,0.00019967,2]
[360526317,1746841840525,-400.0,0.00019967,2]
[360526318,1746841840534,-400.0,0.00019967,2]
[360526319,1746841840545,-400.0,0.00019967,2]
[360526320,1746841840555,-400.0,0.00019967,2]
[360526322,1746841840565,-250.0,0.00019967,2]
[360526324,1746841840576,-491.56864337,0.00019967,2]
[360526326,1746841840585,-400.0,0.00019967,2]
[360526328,1746841840595,-400.0,0.00019967,2]
[360526330,1746841840604,-400.0,0.00019967,2]
[360526332,1746841840613,-484.69912965,0.00019967,2]
[360526334,1746841840622,-400.0,0.00019967,2]
[360526336,1746841840630,-400.0,0.00019967,2]
[360526338,1746841840639,-400.0,0.00019967,2]
[360526340,1746841840647,-400.0,0.00019967,2]
[360526342,1746841840656,-400.0,0.00019967,2]
[360526344,1746841840664,-499.5547905,0.00019967,2]
[360526346,1746841840673,-400.0,0.00019967,2]
[360526348,1746841840682,-400.0,0.00019967,2]
[360526350,1746841840691,-189.44733022,0.00019967,2]
[360526352,1746841840700,-400.0,0.00019967,2]
[360526354,1746841840709,-1149.0,0.00019967,2]
[360526356,1746841840718,-400.0,0.00019967,2]
[360526358,1746841840728,-400.0,0.00019967,2]
[360526360,1746841840737,-400.0,0.00019967,2]
[360526362,1746841840747,-400.0,0.00019967,2]
[360526363,1746841840757,-508.00666218,0.00019967,2]
[360526366,1746841840766,-376.81670933,0.00019967,2]
[360526368,1746841840776,-400.0,0.00019967,2]
[360526370,1746841840785,-400.0,0.00019967,2]
[360526372,1746841840795,-400.0,0.00019967,2]
[360526374,1746841840804,-481.34213574,0.00019967,2]
[360526376,1746841840813,-488.0497115,0.00019967,2]
[360526377,1746841840823,-507.47941061,0.00019967,2]
[360526380,1746841840834,-761.29,0.00019967,2]
[360526383,1746841840843,-500.0,0.00019967,2]
[360526385,1746841840853,-401.73929415,0.00019967,2]
[360526387,1746841840862,-400.0,0.00019967,2]
[360526389,1746841840871,-400.0,0.00019967,2]
[360526391,1746841840880,-400.0,0.00019967,2]
[360526393,1746841840890,-400.0,0.00019967,2]
[360526395,1746841840899,-400.0,0.00019967,2]
[360526397,1746841840908,-445.90893079,0.00019967,2]
[360526399,1746841840918,-508.47198538,0.00019967,2]
[360526401,1746841840928,-279.08006838,0.00019967,2]
[360526403,1746841840938,-400.0,0.00019967,2]
[360526405,1746841840947,-400.0,0.00019967,2]
[360526407,1746841840957,-400.0,0.00019967,2]
[360526409,1746841840966,-400.0,0.00019967,2]
[360526411,1746841840976,-400.0,0.00019967,2]
[360526413,1746841840985,-400.0,0.00019967,2]
[360526415,1746841840994,-400.0,0.00019967,2]
[360526418,1746841841005,-400.0,0.00019967,2]
[360526420,1746841841016,-483.5577684,0.00019967,2]
[360526422,1746841841026,-346.54711117,0.00019967,2]
[360526424,1746841841039,-53.45288883,0.00019967,2]
[360526425,1746841841052,-400.0,0.00019967,2]
[360526426,1746841841061,-70.8890794,0.00019967,2]
[360526427,1746841841075,-329.1109206,0.00019967,2]
[360526428,1746841841085,-330.80539564,0.00019967,2]
[360526429,1746841841095,-400.0,0.00019967,2]
[360526430,1746841841105,-400.0,0.00019967,2]
[360526431,1746841841115,-493.58,0.00019967,2]
[360526432,1746841841124,-400.0,0.00019967,2]
[360526433,1746841841136,-547.21197637,0.00019967,2]
[360526434,1746841841146,-200.0,0.00019967,2]
[360526435,1746841841156,-400.0,0.00019967,2]
[360526436,1746841841166,-400.0,0.00019967,2]
[360526437,1746841841176,-400.0,0.00019967,2]
[360526438,1746841841185,-19.33742884,0.00019967,2]
[360526439,1746841841196,-468.7176822,0.00019967,2]
[360526440,1746841841205,-400.0,0.00019967,2]
[360526441,1746841841214,-227.04562593,0.00019967,2]
[360526442,1746841841223,-400.0,0.00019967,2]
[360526443,1746841841231,-400.0,0.00019967,2]
[360526444,1746841841241,-265.20366641,0.00019967,2]
[360526445,1746841841251,-480.61670403,0.00019967,2]
[360526446,1746841841260,-400.0,0.00019967,2]
[360526447,1746841841271,-400.0,0.00019967,2]
[360526448,1746841841280,-400.0,0.00019967,2]
[360526449,1746841841289,-500.0,0.00019967,2]
[360526450,1746841841299,-400.0,0.00019967,2]
[360526451,1746841841309,-400.0,0.00019967,2]
[360526452,1746841841319,-400.0,0.00019967,2]
[360526453,1746841841330,-468.39459675,0.00019967,2]
[360526454,1746841841340,-400.0,0.00019967,2]
[360526455,1746841841349,-400.0,0.00019967,2]
[360526456,1746841841359,-568.28539584,0.00019967,2]
[360526457,1746841841368,-523.30112575,0.00019967,2]
[360526458,1746841841378,-400.0,0.00019967,2]
[360526459,1746841841387,-530.35,0.00019967,2]
[360526460,1746841841397,-400.0,0.00019967,2]
[360526461,1746841841407,-293.78829991,0.00019967,2]
[360526462,1746841841416,-416.61822794,0.00019967,2]
[360526463,1746841841426,-483.72,0.00019967,2]
[360526464,1746841841436,-400.0,0.00019967,2]
[360526465,1746841841445,-992.47,0.00019967,2]
[360526466,1746841841455,-400.0,0.00019967,2]
[360526467,1746841841465,-400.0,0.00019967,2]
[360526468,1746841841474,-400.0,0.00019967,2]
[360526469,1746841841484,-400.0,0.00019967,2]
[360526470,1746841841495,-400.0,0.00019967,2]
[360526471,1746841841504,-400.0,0.00019967,2]
[360526472,1746841841514,-401.71335609,0.00019967,2]
[360526473,1746841841523,-504.65896598,0.00019967,2]
[360526474,1746841841533,-400.0,0.00019967,2]
[360526475,1746841841544,-290.56829067,0.00019967,2]
[360526476,1746841841553,-400.0,0.00019967,2]
[360526477,1746841841563,-272.3095595,0.00019967,2]
[360526478,1746841841574,-1130.06,0.00019967,2]
[360526479,1746841841585,-545.65639834,0.00019967,2]
[360526480,1746841841594,-400.0,0.00019967,2]
[360526481,1746841841604,-400.0,0.00019967,2]
[360526482,1746841841613,-151.13511255,0.00019967,2]
[360526483,1746841841623,-160.07146556,0.00019967,2]
[360526484,1746841841632,-402.41957066,0.00019967,2]
[360526485,1746841841643,-343.27048265,0.00019967,2]
[360526486,1746841841653,-400.0,0.00019967,2]
[360526487,1746841841662,-400.0,0.00019967,2]
[360526488,1746841841672,-400.0,0.00019967,2]
[360526489,1746841841682,-506.69519828,0.00019967,2]
[360526490,1746841841691,-400.0,0.00019967,2]
[360526491,1746841841700,-400.0,0.00019967,2]
[360526492,1746841841710,-147.31168735,0.00019967,2]
[360526493,1746841841723,-252.68831265,0.00019967,2]
[360526494,1746841841732,-400.0,0.00019967,2]
[360526495,1746841841742,-400.0,0.00019967,2]
[360526496,1746841841751,-400.0,0.00019967,2]
[360526497,1746841841761,-400.0,0.00019967,2]
[360526498,1746841841771,-400.0,0.00019967,2]
[360526499,1746841841780,-400.0,0.00019967,2]
[360526500,1746841841789,-400.0,0.00019967,2]
[360526501,1746841841799,-400.0,0.00019967,2]
[360526502,1746841841809,-400.0,0.00019967,2]
[360526503,1746841841819,-442.13,0.00019967,2]
[360526504,1746841841829,-1580.78,0.00019967,2]
[360526505,1746841841839,-400.0,0.00019967,2]
[360526506,1746841841848,-528.35151468,0.00019967,2]
[360526507,1746841841858,-400.0,0.00019967,2]
[360526508,1746841841867,-400.0,0.00019967,2]
[360526509,1746841841877,-400.0,0.00019967,2]
[360526510,1746841841886,-400.0,0.00019967,2]
[360526511,1746841841896,-879.0,0.00019967,2]
[360526512,1746841841905,-3771.01,0.00019967,2]
[360526513,1746841841915,-400.0,0.00019967,2]
[360526514,1746841841924,-553.65,0.00019967,2]
[360526515,1746841841934,-400.0,0.00019967,2]
[360526516,1746841841943,-257.23529123,0.00019967,2]
[360526517,1746841841954,-400.0,0.00019967,2]
[360526518,1746841841963,-389.65488144,0.00019967,2]
[360526519,1746841841979,-10.34511856,0.00019967,2]
[360526520,1746841841989,-400.0,0.00019967,2]
[360526521,1746841841998,-400.0,0.00019967,2]
[360526522,1746841842008,-353.40863729,0.00019967,2]
[360526523,1746841842018,-1019.0,0.00019967,2]
[360526524,1746841842028,-1000.0,0.00019968,2]
[360526525,1746841842038,-1000.0,0.00019968,2]
[360526526,1746841842050,-1000.0,0.00019968,2]
[360526527,1746841842060,-1000.0,0.00019968,2]
[360526528,1746841842069,-1000.0,0.00019968,2]
[360526529,1746841842080,-176.3764297,0.00019968,2]
[360526530,1746841842091,-823.6235703,0.00019968,2]
[360526531,1746841842101,-968.7764301,0.00019968,2]
[360526532,1746841842112,-31.2235699,0.00019968,2]
[360526533,1746841842121,-899.15362624,0.00019968,2]
[360526534,1746841842133,-100.84637376,0.00019968,2]
[360526535,1746841842143,-508.0,0.00019968,2]
[360526536,1746841842153,-1000.0,0.00019968,2]
[360526537,1746841842163,-1000.0,0.00019968,2]
[360526538,1746841842173,-1000.0,0.00019968,2]
[360526539,1746841842182,-1000.0,0.00019968,2]
[360526540,1746841842192,-1000.0,0.00019968,2]
[360526541,1746841842202,-1000.0,0.00019968,2]
[360526542,1746841842212,-1000.0,0.00019968,2]
[360526543,1746841842222,-1000.0,0.00019968,2]
[360526544,1746841842231,-1000.0,0.00019968,2]
[360526545,1746841842241,-734.01223451,0.00019968,2]
[360526558,1746841843227,-400.0,0.00019967,2]
[360526559,1746841843237,-265.98776549,0.00019968,2]
[360526560,1746841843246,-1000.0,0.00019968,2]
[360526561,1746841843256,-1000.0,0.00019968,2]
[360526562,1746841843266,-1000.0,0.00019968,2]
[360526563,1746841843276,-1000.0,0.00019968,2]
[360526564,1746841843286,-1000.0,0.00019968,2]
[360526565,1746841843295,-1000.0,0.00019968,2]
[360526566,1746841843305,-1000.0,0.00019968,2]
[360526567,1746841843315,-1000.0,0.00019968,2]
[360526568,1746841843326,-1000.0,0.00019968,2]
[360526569,1746841843336,-1000.0,0.00019968,2]
[360526570,1746841843346,-1000.0,0.00019968,2]
[360526571,1746841843355,-1000.0,0.00019968,2]
[360526572,1746841843365,-1000.0,0.00019968,2]
[360526573,1746841843375,-1000.0,0.00019968,2]
[360526574,1746841843385,-1000.0,0.00019968,2]
[360526575,1746841843394,-1000.0,0.00019968,2]
[360526576,1746841843403,-211.45850036,0.00019968,2]
[360526577,1746841843430,-743.71812526,0.00019968,2]
[360526581,1746841846161,-302.03000004,0.00019967,2]
[360526582,1746841846174,-97.96999996,0.00019967,2]
[360526583,1746841846183,-44.82337438,0.00019968,2]
[360526584,1746841846192,-1000.0,0.00019968,2]
[360526585,1746841846202,-693.25352568,0.00019968,2]
[360526586,1746841846213,-306.74647432,0.00019968,2]
[360526587,1746841846223,-1000.0,0.00019968,2]
[360526588,1746841846232,-1000.0,0.00019968,2]
[360526589,1746841846242,-1000.0,0.00019968,2]
[360526590,1746841846251,-1000.0,0.00019968,2]
[360526591,1746841846261,-1000.0,0.00019968,2]
[360526592,1746841846270,-538.95194013,0.00019968,2]
[360526593,1746841846281,-461.04805987,0.00019968,2]
[360526594,1746841846291,-1000.0,0.00019968,2]
[360526595,1746841846300,-45.85489537,0.00019968,2]
[360526596,1746841846315,-954.14510463,0.00019968,2]
[360526597,1746841846324,-1000.0,0.00019968,2]
[360526598,1746841846335,-1000.0,0.00019968,2]
[360526599,1746841846344,-1000.0,0.00019968,2]
[360526600,1746841846353,-1000.0,0.00019968,2]
[360526601,1746841846363,-1000.0,0.00019968,2]
[360526602,1746841846372,-1000.0,0.00019968,2]
[360526603,1746841846381,-1000.0,0.00019968,2]
[360526604,1746841846391,-1000.0,0.00019968,2]
[360526605,1746841846401,-1000.0,0.00019968,2]
[360526606,1746841846410,-1000.0,0.00019968,2]
[360526607,1746841846421,-1000.0,0.00019968,2]
[360526608,1746841846430,-1000.0,0.00019968,2]
[360526609,1746841846439,-1000.0,0.00019968,2]
[360526610,1746841846448,-1000.0,0.00019968,2]
[360526611,1746841846458,-1000.0,0.00019968,2]
[360526612,1746841846467,-1000.0,0.00019968,2]
[360526613,1746841846476,-1000.0,0.00019968,2]
[360526614,1746841846485,-1000.0,0.00019968,2]
[360526615,1746841846498,-1000.0,0.00019968,2]
[360526616,1746841846507,-1000.0,0.00019968,2]
[360526617,1746841846517,-1000.0,0.00019968,2]
[360526618,1746841846526,-1000.0,0.00019968,2]
[360526619,1746841846535,-1000.0,0.00019968,2]
[360526620,1746841846546,-1000.0,0.00019968,2]
[360526621,1746841846556,-1000.0,0.00019968,2]
[360526622,1746841846566,-1000.0,0.00019968,2]
[360526623,1746841846578,-921.09941306,0.00019968,2]
[360526624,1746841846591,-78.90058694,0.00019968,2]
[360526625,1746841846600,-956.0,0.00019968,2]
[360526626,1746841846610,-1000.0,0.00019968,2]
[360526627,1746841846619,-1000.0,0.00019968,2]
[360526628,1746841846628,-1000.0,0.00019968,2]
[360526629,1746841846638,-1000.0,0.00019968,2]
[360526630,1746841846648,-1000.0,0.00019968,2]
[360526631,1746841846657,-98.81415481,0.00019968,2]
[360526632,1746841846669,-901.18584519,0.00019968,2]
[360526633,1746841846678,-400.0,0.00019968,2]
[360526634,1746841846687,-500.0,0.00019968,2]
[360526635,1746841846697,-222.68100199,0.00019968,2]
[360526636,1746841846706,-400.0,0.00019968,2]
[360526637,1746841846715,-600.0,0.00019968,2]
[360526638,1746841846725,-411.44201793,0.00019968,2]
[360526639,1746841846734,-440.57044464,0.00019968,2]
[360526640,1746841846743,-412.00967709,0.00019968,2]
[360526641,1746841846752,-400.0,0.00019968,2]
[360526642,1746841846761,-501.21439213,0.00019968,2]
[360526643,1746841846771,-407.58735349,0.00019968,2]
[360526644,1746841846780,-392.45548192,0.00019968,2]
[360526645,1746841846789,-412.73287746,0.00019968,2]
[360526646,1746841846798,-400.0,0.00019968,2]
[360526647,1746841846807,-453.82660033,0.00019968,2]
[360526648,1746841846816,-430.49355128,0.00019968,2]
[360526649,1746841846825,-400.0,0.00019968,2]
[360526650,1746841846837,-409.87376468,0.00019968,2]
[360526651,1746841846846,-425.7961664,0.00019968,2]
[360526652,1746841846856,-404.82897167,0.00019968,2]
[360526653,1746841846865,-400.0,0.00019968,2]
[360526654,1746841846875,-417.96821074,0.00019968,2]
[360526655,1746841846884,-417.28817674,0.00019968,2]
[360526656,1746841846893,-431.13914701,0.00019968,2]
[360526657,1746841846902,-468.30677606,0.00019968,2]
[360526658,1746841846912,-157.32682127,0.00019968,2]
[360526659,1746841846922,-454.65098702,0.00019968,2]
[360526660,1746841846931,-400.0,0.00019968,2]
[360526661,1746841846941,-400.0,0.00019968,2]
[360526662,1746841846951,-404.15074992,0.00019968,2]
[360526663,1746841846961,-412.55735451,0.00019968,2]
[360526664,1746841846970,-484.67230558,0.00019968,2]
[360526665,1746841846986,-400.0,0.00019968,2]
[360526666,1746841846995,-448.40198883,0.00019968,2]
[360526667,1746841847006,-400.0,0.00019968,2]
[360526668,1746841847016,-400.0,0.00019968,2]
[360526669,1746841847026,-400.0,0.00019968,2]
[360526670,1746841847036,-400.0,0.00019968,2]
[360526671,1746841847046,-478.81533109,0.00019968,2]
[360526672,1746841847055,-400.0,0.00019968,2]
[360526673,1746841847065,-457.23093463,0.00019968,2]
[360526674,1746841847074,-400.0,0.00019968,2]
[360526675,1746841847085,-400.0,0.00019968,2]
[360526676,1746841847094,-151.0,0.00019968,2]
[360526677,1746841847104,-188.434423,0.00019968,2]
[360526678,1746841847113,-400.0,0.00019968,2]
[360526679,1746841847122,-400.0,0.00019968,2]
[360526680,1746841847131,-400.0,0.00019968,2]
[360526681,1746841847141,-400.0,0.00019968,2]
[360526682,1746841847150,-400.0,0.00019968,2]
[360526683,1746841847160,-400.0,0.00019968,2]
[360526684,1746841847169,-400.0,0.00019968,2]
[360526685,1746841847178,-400.0,0.00019968,2]
[360526686,1746841847188,-168.11747858,0.00019968,2]
[360526687,1746841847198,-432.30546854,0.00019968,2]
[360526688,1746841847207,-400.0,0.00019968,2]
[360526689,1746841847217,-400.0,0.00019968,2]
[360526690,1746841847226,-400.0,0.00019968,2]
[360526691,1746841847236,-400.0,0.00019968,2]
[360526692,1746841847245,-400.0,0.00019968,2]
[360526693,1746841847254,-400.0,0.00019968,2]
[360526694,1746841847264,-393.19605617,0.00019968,2]
[360526695,1746841847273,-400.0,0.00019968,2]
[360526696,1746841847283,-400.0,0.00019968,2]
[360526697,1746841847294,-471.75748644,0.00019968,2]
[360526698,1746841847303,-400.0,0.00019968,2]
[360526699,1746841847313,-175.32523475,0.00019968,2]
[360526700,1746841847322,-382.61328051,0.00019968,2]
[360526701,1746841847334,-400.0,0.00019968,2]
[360526702,1746841847344,-400.0,0.00019968,2]
[360526703,1746841847354,-235.63214439,0.00019968,2]
[360526704,1746841847364,-400.0,0.00019968,2]
[360526705,1746841847374,-533.9043483,0.00019968,2]
[360526706,1746841847384,-400.0,0.00019968,2]
[360526707,1746841847394,-400.0,0.00019968,2]
[360526708,1746841847403,-388.98202992,0.00019968,2]
[360526709,1746841847413,-295.67761616,0.00019968,2]
[360526710,1746841847423,-400.0,0.00019968,2]
[360526711,1746841847432,-400.0,0.00019968,2]
[360526712,1746841847442,-526.48733498,0.00019968,2]
[360526713,1746841847451,-348.01235962,0.00019968,2]
[360526714,1746841847460,-458.24172364,0.00019968,2]
[360526715,1746841847469,-519.80558357,0.00019968,2]
[360526716,1746841847479,-400.0,0.00019968,2]
[360526717,1746841847489,-452.27529537,0.00019968,2]
[360526718,1746841847501,-400.0,0.00019968,2]
[360526719,1746841847511,-400.0,0.00019968,2]
[360526720,1746841847520,-454.43486725,0.00019968,2]
[360526721,1746841847530,-400.0,0.00019968,2]
[360526722,1746841847540,-453.66547118,0.00019968,2]
[360526723,1746841847550,-471.38297945,0.00019968,2]
[360526724,1746841847559,-169.72540782,0.00019968,2]
[360526725,1746841847569,-354.56809274,0.00019968,2]
[360526726,1746841847578,-400.0,0.00019968,2]
[360526727,1746841847590,-429.84063804,0.00019968,2]
[360526728,1746841847599,-400.0,0.00019968,2]
[360526729,1746841847609,-400.0,0.00019968,2]
[360526730,1746841847619,-400.0,0.00019968,2]
[360526731,1746841847630,-400.0,0.00019968,2]
[360526732,1746841847639,-477.2284942,0.00019968,2]
[360526733,1746841847648,-484.49,0.00019968,2]
[360526734,1746841847658,-516.54519207,0.00019968,2]
[360526735,1746841847668,-400.0,0.00019968,2]
[360526736,1746841847677,-455.10584017,0.00019968,2]
[360526737,1746841847688,-223.33254163,0.00019968,2]
[360526738,1746841847698,-400.0,0.00019968,2]
[360526739,1746841847707,-531.3031822,0.00019968,2]
[360526740,1746841847718,-259.87078092,0.00019968,2]
[360526741,1746841873240,906.45126122,0.00030136,120]
[360526742,1746841880157,322.99,0.0001709,2]
[360526743,1746841880564,322.99,0.00019354,2]
[360526744,1746841993025,1080.70458341,0.00019499,2]
[360526745,1746842003410,161.13086006,0.00019488,2]
[360526746,1746842036503,241.66,0.00018954,2]
[360526747,1746842043894,250.0,0.00018949,2]
[360526748,1746842150600,1000.0,0.000195,2]
[360526754,1746842415817,530.97660583,0.00029589,30]
[360526758,1746842471262,150.0,0.00018986,7]
[360526773,1746842623222,150.61744603,0.00030136,120]
[360526797,1746842881309,1000.0,0.00018945,2]
[360526801,1746842913270,290.69,0.00017036,2]
[360526802,1746842913481,290.69,0.000193,2]
[360526817,1746843032197,-508.28505914,0.000197,2]
[360526818,1746843032208,-235.15471498,0.000197,2]
[360526819,1746843032218,-129.23825393,0.00019746,2]
[360526820,1746843032299,-67.95461507,0.00019746,2]
[360526821,1746843032309,-481.04538493,0.00019749,2]
[360526822,1746843032320,-593.95461507,0.00019749,2]
[360526823,1746843032329,-207.4,0.00019788,2]
[360526824,1746843032339,-527.81208704,0.00019788,2]
[360526825,1746843032348,-1200.0,0.00019799,2]
[360526826,1746843032357,-300.0,0.00019799,2]
[360526827,1746843032367,-300.0,0.00019799,2]
[360526828,1746843032375,-150.60728597,0.000198,2]
[360526829,1746843032385,-20000.0,0.000198,2]
[360526830,1746843032394,-879.0,0.00019857,2]
[360526831,1746843032404,-2500.6365,0.00019859,2]
[360526844,1746843032618,-222.3761,0.00019859,2]
[360526846,1746843032628,-2383.2966414,0.00019859,2]
[360526848,1746843032637,-2383.29664133,0.00019864,2]
[360526850,1746843032646,-256.61969256,0.00019866,2]
[360526852,1746843032656,-171.29657149,0.00019867,2]
[360526854,1746843032665,-6206.4045,0.00019868,2]
[360526856,1746843032674,-343.9995,0.00019868,2]
[360526858,1746843032683,-2383.29664133,0.00019868,2]
[360526860,1746843032693,-2383.29664133,0.00019873,2]
[360526862,1746843032702,-2383.29664133,0.00019877,2]
[360526865,1746843032711,-2383.29664133,0.00019882,2]
[360526868,1746843032720,-2383.29664133,0.00019886,2]
[360526871,1746843032729,-1740.62270133,0.00019891,2]
[360526874,1746843032741,-642.67394,0.00019891,2]
[360526876,1746843032750,-1412.258,0.00019895,2]